[Event "*** SCC Grand Prix: Titled Tuesday Blitz"]
[Site "Chess.com"]
[Date "2020.06.02"]
[Round "10"]
[White "Korchmar_Vasiliy"]
[Black "JSMastropiero"]
[Result "0-1"]
[WhiteElo "2586"]
[BlackElo "2464"]
[TimeControl "180+1"]
[EndTime "12:00:07 PDT"]
[Termination "JSMastropiero won on time"]

1. d4 {[%clk 0:03:00.9]} 1... Nf6 {[%clk 0:02:54.7]} 2. c4 {[%clk 0:03:01.4]}
2... c5 {[%clk 0:02:50.6]} 3. d5 {[%clk 0:03:01.2]} 3... b5 {[%clk 0:02:49.8]}
4. cxb5 {[%clk 0:03:00.8]} 4... a6 {[%clk 0:02:49.7]} 5. bxa6 {[%clk 0:03:01.7]}
5... g6 {[%clk 0:02:48.9]} 6. Nc3 {[%clk 0:03:02.2]} 6... Bxa6 {[%clk
0:02:49.1]} 7. e4 {[%clk 0:03:02.1]} 7... Bxf1 {[%clk 0:02:49.3]} 8. Kxf1 {[%clk
0:03:03]} 8... d6 {[%clk 0:02:49.4]} 9. Nf3 {[%clk 0:03:02.7]} 9... Bg7 {[%clk
0:02:49.6]} 10. g3 {[%clk 0:03:03.6]} 10... O-O {[%clk 0:02:49.9]} 11. Kg2
{[%clk 0:03:04.5]} 11... Qb6 {[%clk 0:02:49.9]} 12. Qe2 {[%clk 0:02:36.1]} 12...
Qb7 {[%clk 0:02:46.2]} 13. Rd1 {[%clk 0:02:33.6]} 13... Na6 {[%clk 0:02:42.6]}
14. e5 {[%clk 0:02:31.2]} 14... dxe5 {[%clk 0:02:39.9]} 15. Nxe5 {[%clk
0:02:31.5]} 15... e6 {[%clk 0:02:37.3]} 16. Qf3 {[%clk 0:02:19.6]} 16... Nxd5
{[%clk 0:02:21.6]} 17. Nxd5 {[%clk 0:02:05]} 17... exd5 {[%clk 0:02:21.4]} 18.
Rxd5 {[%clk 0:01:58.8]} 18... Nb4 {[%clk 0:02:06.4]} 19. Rxc5 {[%clk 0:01:54.7]}
19... Qxf3+ {[%clk 0:02:05.4]} 20. Nxf3 {[%clk 0:01:44.1]} 20... Nd3 {[%clk
0:01:55.5]} 21. Rd5 {[%clk 0:01:22.4]} 21... Nxc1 {[%clk 0:01:53.9]} 22. Rxc1
{[%clk 0:01:21.5]} 22... Bxb2 {[%clk 0:01:53.8]} 23. Rc2 {[%clk 0:01:19.9]}
23... Rfb8 {[%clk 0:01:46.7]} 24. Ne5 {[%clk 0:01:08.8]} 24... Bxe5 {[%clk
0:01:36.2]} 25. Rxe5 {[%clk 0:01:09.1]} 25... Ra3 {[%clk 0:01:35.3]} 26. Re7
{[%clk 0:01:04.3]} 26... Rba8 {[%clk 0:01:33.9]} 27. Rcc7 {[%clk 0:01:02.3]}
27... Rf8 {[%clk 0:01:30.7]} 28. Ra7 {[%clk 0:01:01.2]} 28... Ra8 {[%clk
0:01:28.1]} 29. Re8+ {[%clk 0:00:43.9]} 29... Rxe8 {[%clk 0:01:23.2]} 30. Rxa3
{[%clk 0:00:44.1]} 30... Re2 {[%clk 0:01:22.5]} 31. g4 {[%clk 0:00:40.2]} 31...
Kg7 {[%clk 0:01:18.1]} 32. Ra6 {[%clk 0:00:34.6]} 32... Rb2 {[%clk 0:01:06.1]}
33. a4 {[%clk 0:00:33]} 33... Ra2 {[%clk 0:01:05.5]} 34. Kg3 {[%clk 0:00:31.7]}
34... g5 {[%clk 0:01:01.9]} 35. a5 {[%clk 0:00:25.5]} 35... Ra3+ {[%clk
0:01:01.4]} 36. f3 {[%clk 0:00:23]} 36... f6 {[%clk 0:01:01.1]} 37. Ra7+ {[%clk
0:00:22.3]} 37... Kg6 {[%clk 0:01:01.4]} 38. a6 {[%clk 0:00:20]} 38... h5 {[%clk
0:01:00.1]} 39. gxh5+ {[%clk 0:00:13.4]} 39... Kxh5 {[%clk 0:01:00.3]} 40. Ra8
{[%clk 0:00:09.9]} 40... Kg6 {[%clk 0:00:56]} 41. a7 {[%clk 0:00:08.8]} 41...
Kg7 {[%clk 0:00:56.1]} 42. Kg4 {[%clk 0:00:08.2]} 42... Ra5 {[%clk 0:00:53.9]}
43. Kg3 {[%clk 0:00:04]} 43... Ra4 {[%clk 0:00:51.5]} 44. Kf2 {[%clk 0:00:04.3]}
44... Ra3 {[%clk 0:00:47.9]} 45. Ke2 {[%clk 0:00:04.4]} 45... Kh7 {[%clk
0:00:41]} 46. h3 {[%clk 0:00:04.7]} 46... Kg7 {[%clk 0:00:40.9]} 47. Kd2 {[%clk
0:00:05.1]} 47... Kh7 {[%clk 0:00:39]} 48. Ke1 {[%clk 0:00:05.3]} 48... Kg7
{[%clk 0:00:38.8]} 49. Kf2 {[%clk 0:00:05.9]} 49... Kh7 {[%clk 0:00:38.6]} 50.
Kg2 {[%clk 0:00:05.7]} 50... Kg7 {[%clk 0:00:38.6]} 51. Kg3 {[%clk 0:00:06.2]}
51... Ra4 {[%clk 0:00:37.6]} 52. Kf2 {[%clk 0:00:04.3]} 52... Ra3 {[%clk
0:00:37.6]} 53. Ke2 {[%clk 0:00:04.4]} 53... Kh7 {[%clk 0:00:37.3]} 54. Kd1
{[%clk 0:00:05]} 54... Ra2 {[%clk 0:00:36.6]} 55. Kc1 {[%clk 0:00:04.8]} 55...
Kg7 {[%clk 0:00:36.9]} 56. Kb1 {[%clk 0:00:05.1]} 56... Ra6 {[%clk 0:00:37.3]}
57. Kb2 {[%clk 0:00:04.8]} 57... Ra4 {[%clk 0:00:35.1]} 58. Kb3 {[%clk
0:00:04.7]} 58... Ra1 {[%clk 0:00:35.1]} 59. Kc4 {[%clk 0:00:05.1]} 59... Rc1+
{[%clk 0:00:28.8]} 60. Kb5 {[%clk 0:00:04.2]} 60... Rb1+ {[%clk 0:00:29]} 61.
Kc6 {[%clk 0:00:04.4]} 61... Rc1+ {[%clk 0:00:29.1]} 62. Kb6 {[%clk 0:00:04.5]}
62... Rb1+ {[%clk 0:00:29.3]} 63. Kc7 {[%clk 0:00:04.3]} 63... Rc1+ {[%clk
0:00:29.7]} 64. Kd7 {[%clk 0:00:04.7]} 64... Rd1+ {[%clk 0:00:30]} 65. Ke6
{[%clk 0:00:04.9]} 65... Ra1 {[%clk 0:00:27.9]} 66. Kf5 {[%clk 0:00:02.2]} 66...
Ra5+ {[%clk 0:00:27]} 67. Ke6 {[%clk 0:00:02.4]} 67... Ra6+ {[%clk 0:00:27.2]}
68. Ke7 {[%clk 0:00:02.4]} 68... Ra1 {[%clk 0:00:27]} 69. Ke8 {[%clk 0:00:02.3]}
69... Kg6 {[%clk 0:00:16.5]} 70. Kf8 {[%clk 0:00:01.4]} 70... Kf5 {[%clk
0:00:14.5]} 71. Kg8 {[%clk 0:00:01.9]} 71... Ra6 {[%clk 0:00:13.1]} 72. Kf7
{[%clk 0:00:02.1]} 72... Ra1 {[%clk 0:00:10.8]} 73. Kg7 {[%clk 0:00:02.1]} 73...
Ra6 {[%clk 0:00:10.2]} 0-1

[Event "*** SCC Grand Prix: Titled Tuesday Blitz"]
[Site "Chess.com"]
[Date "2020.06.02"]
[Round "10"]
[White "Vaathi_Coming"]
[Black "Rish_97"]
[Result "1/2-1/2"]
[WhiteElo "2845"]
[BlackElo "2645"]
[TimeControl "180+1"]
[EndTime "12:00:12 PDT"]
[Termination "Game drawn by stalemate"]

1. Nf3 {[%clk 0:03:00.9]} 1... d5 {[%clk 0:02:59.2]} 2. g3 {[%clk 0:03:01.8]}
2... g6 {[%clk 0:02:59.1]} 3. d4 {[%clk 0:03:01.4]} 3... Bg7 {[%clk 0:02:59.3]}
4. Bg2 {[%clk 0:02:58.3]} 4... Nf6 {[%clk 0:02:59.4]} 5. O-O {[%clk 0:02:58.9]}
5... O-O {[%clk 0:02:57.8]} 6. c4 {[%clk 0:02:58.6]} 6... dxc4 {[%clk
0:02:57.1]} 7. Na3 {[%clk 0:02:55.9]} 7... c5 {[%clk 0:02:54]} 8. Nxc4 {[%clk
0:02:55]} 8... Be6 {[%clk 0:02:42.3]} 9. Nfe5 {[%clk 0:02:44]} 9... cxd4 {[%clk
0:02:31.7]} 10. Bxb7 {[%clk 0:02:43.2]} 10... Bd5 {[%clk 0:02:27.2]} 11. Bxa8
{[%clk 0:02:34.4]} 11... Bxa8 {[%clk 0:02:28.1]} 12. Nf3 {[%clk 0:02:34.8]}
12... Nc6 {[%clk 0:02:18.3]} 13. Bf4 {[%clk 0:02:31.9]} 13... Qd5 {[%clk
0:02:13.5]} 14. Nce5 {[%clk 0:02:23.5]} 14... Nxe5 {[%clk 0:01:47.7]} 15. Bxe5
{[%clk 0:02:24.4]} 15... d3 {[%clk 0:01:47.9]} 16. Re1 {[%clk 0:02:09.7]} 16...
Qe4 {[%clk 0:01:30]} 17. Bc3 {[%clk 0:01:33.8]} 17... dxe2 {[%clk 0:01:17.6]}
18. Qxe2 {[%clk 0:01:34.7]} 18... Qxf3 {[%clk 0:01:12.6]} 19. Qxf3 {[%clk
0:01:33.2]} 19... Bxf3 {[%clk 0:01:13.5]} 20. Rxe7 {[%clk 0:01:33.6]} 20... a5
{[%clk 0:00:54.5]} 21. Re3 {[%clk 0:01:31.5]} 21... Ba8 {[%clk 0:00:51.5]} 22.
Rd1 {[%clk 0:01:23.4]} 22... Nd5 {[%clk 0:00:48.9]} 23. Red3 {[%clk 0:01:16.8]}
23... Nxc3 {[%clk 0:00:48.5]} 24. bxc3 {[%clk 0:01:17.7]} 24... Be4 {[%clk
0:00:48.2]} 25. Re3 {[%clk 0:01:14.8]} 25... Bf5 {[%clk 0:00:44.9]} 26. Rd5
{[%clk 0:01:11.7]} 26... Ra8 {[%clk 0:00:43.5]} 27. a4 {[%clk 0:01:08.5]} 27...
Bc2 {[%clk 0:00:38.3]} 28. Re2 {[%clk 0:00:59.6]} 28... Bxa4 {[%clk 0:00:37.1]}
29. Ra2 {[%clk 0:00:59.2]} 29... Be8 {[%clk 0:00:26.6]} 30. Rdxa5 {[%clk
0:00:56.6]} 30... Rxa5 {[%clk 0:00:26.7]} 31. Rxa5 {[%clk 0:00:57.5]} 31... Bxc3
{[%clk 0:00:27.1]} 32. Ra7 {[%clk 0:00:54.5]} 32... Kf8 {[%clk 0:00:25.6]} 33.
h4 {[%clk 0:00:53.5]} 33... h5 {[%clk 0:00:25.8]} 34. Rc7 {[%clk 0:00:50.2]}
34... Be5 {[%clk 0:00:25.5]} 35. Ra7 {[%clk 0:00:48.8]} 35... Bd6 {[%clk
0:00:24.4]} 36. Kg2 {[%clk 0:00:46.8]} 36... Bc6+ {[%clk 0:00:23.6]} 37. Kg1
{[%clk 0:00:47.2]} 37... Be7 {[%clk 0:00:21.5]} 38. Rc7 {[%clk 0:00:45.2]} 38...
Bd5 {[%clk 0:00:21.5]} 39. Rd7 {[%clk 0:00:45.2]} 39... Be6 {[%clk 0:00:21.7]}
40. Ra7 {[%clk 0:00:44.9]} 40... Bd6 {[%clk 0:00:21.9]} 41. Ra6 {[%clk
0:00:44.8]} 41... Be5 {[%clk 0:00:22.3]} 42. Ra5 {[%clk 0:00:44.8]} 42... Bd4
{[%clk 0:00:22.7]} 43. Ra4 {[%clk 0:00:44.5]} 43... Bc3 {[%clk 0:00:22.9]} 44.
Ra3 {[%clk 0:00:44.7]} 44... Bb2 {[%clk 0:00:23.2]} 45. Ra7 {[%clk 0:00:44.5]}
45... Kg7 {[%clk 0:00:23.3]} 46. Rb7 {[%clk 0:00:44.7]} 46... Be5 {[%clk
0:00:22.9]} 47. Ra7 {[%clk 0:00:43.9]} 47... Kf6 {[%clk 0:00:23.2]} 48. Ra6
{[%clk 0:00:44]} 48... Kf5 {[%clk 0:00:23.1]} 49. Ra4 {[%clk 0:00:43.4]} 49...
f6 {[%clk 0:00:22.7]} 50. Rb4 {[%clk 0:00:36.5]} 50... g5 {[%clk 0:00:21.1]} 51.
hxg5 {[%clk 0:00:32.1]} 51... fxg5 {[%clk 0:00:22]} 52. Rb5 {[%clk 0:00:31]}
52... Kf6 {[%clk 0:00:21.1]} 53. Kg2 {[%clk 0:00:24.8]} 53... h4 {[%clk
0:00:19.9]} 54. gxh4 {[%clk 0:00:14.3]} 54... gxh4 {[%clk 0:00:20.8]} 55. Rb6
{[%clk 0:00:14.4]} 55... Kf5 {[%clk 0:00:19.6]} 56. Kh3 {[%clk 0:00:09.7]} 56...
Bf6 {[%clk 0:00:17.7]} 57. f4 {[%clk 0:00:07.8]} 57... Bd8 {[%clk 0:00:13.4]}
58. Rd6 {[%clk 0:00:04.9]} 58... Be7 {[%clk 0:00:13.5]} 59. Rxe6 {[%clk
0:00:04.1]} 59... Kxe6 {[%clk 0:00:12.9]} 60. f5+ {[%clk 0:00:03.8]} 60... Kf7
{[%clk 0:00:11.6]} 61. Kg2 {[%clk 0:00:04]} 61... Bf6 {[%clk 0:00:11]} 62. Kh1
{[%clk 0:00:03.7]} 62... Kg7 {[%clk 0:00:11.5]} 63. Kg2 {[%clk 0:00:04.3]} 63...
Kh6 {[%clk 0:00:12.1]} 64. Kh3 {[%clk 0:00:05.2]} 64... Kh5 {[%clk 0:00:12.6]}
65. Kg2 {[%clk 0:00:05.4]} 65... Kg4 {[%clk 0:00:13.2]} 66. Kh1 {[%clk
0:00:05.4]} 66... Kh3 {[%clk 0:00:13.6]} 67. Kg1 {[%clk 0:00:05.3]} 67... Kg3
{[%clk 0:00:14.2]} 68. Kh1 {[%clk 0:00:05.6]} 68... Kg4 {[%clk 0:00:13.8]} 69.
Kg2 {[%clk 0:00:05.7]} 69... h3+ {[%clk 0:00:13.2]} 70. Kh2 {[%clk 0:00:06]}
70... Kh4 {[%clk 0:00:13.7]} 71. Kh1 {[%clk 0:00:06.2]} 71... Kg3 {[%clk
0:00:14.4]} 72. Kg1 {[%clk 0:00:06.5]} 72... Bd4+ {[%clk 0:00:12.9]} 73. Kh1
{[%clk 0:00:06.8]} 73... Kf4 {[%clk 0:00:11.6]} 74. f6 {[%clk 0:00:06.2]} 74...
Bxf6 {[%clk 0:00:10.5]} 75. Kh2 {[%clk 0:00:06.1]} 75... Kg4 {[%clk 0:00:10.9]}
76. Kh1 {[%clk 0:00:07]} 76... Bd4 {[%clk 0:00:09.7]} 77. Kh2 {[%clk 0:00:07.9]}
77... Kh4 {[%clk 0:00:10.4]} 78. Kh1 {[%clk 0:00:08.8]} 78... Kg4 {[%clk
0:00:10.2]} 79. Kh2 {[%clk 0:00:09.7]} 79... Be3 {[%clk 0:00:09.8]} 80. Kh1
{[%clk 0:00:10.6]} 80... Kg3 {[%clk 0:00:10.3]} 1/2-1/2

[Event "*** SCC Grand Prix: Titled Tuesday Blitz"]
[Site "Chess.com"]
[Date "2020.06.02"]
[Round "10"]
[White "Panterov"]
[Black "MariaFominykh"]
[Result "1-0"]
[WhiteElo "2144"]
[BlackElo "2253"]
[TimeControl "180+1"]
[EndTime "12:00:13 PDT"]
[Termination "Panterov won on time"]

1. e4 {[%clk 0:03:00.9]} 1... e6 {[%clk 0:02:59.3]} 2. b3 {[%clk 0:02:58.7]}
2... d5 {[%clk 0:02:59.1]} 3. Bb2 {[%clk 0:02:59.6]} 3... dxe4 {[%clk
0:02:58.1]} 4. Nc3 {[%clk 0:02:59.8]} 4... Nf6 {[%clk 0:02:55.6]} 5. Qe2 {[%clk
0:03:00]} 5... Bb4 {[%clk 0:02:43.6]} 6. O-O-O {[%clk 0:02:54.7]} 6... Bxc3
{[%clk 0:02:25.1]} 7. dxc3 {[%clk 0:02:36.9]} 7... Qe7 {[%clk 0:02:18.4]} 8. g4
{[%clk 0:02:37.4]} 8... h6 {[%clk 0:02:12.2]} 9. Bg2 {[%clk 0:02:37.2]} 9...
Nbd7 {[%clk 0:02:07.8]} 10. h4 {[%clk 0:02:37]} 10... Nc5 {[%clk 0:01:47]} 11.
c4 {[%clk 0:02:30.6]} 11... Bd7 {[%clk 0:01:41.7]} 12. g5 {[%clk 0:02:27.2]}
12... hxg5 {[%clk 0:01:40.3]} 13. hxg5 {[%clk 0:02:26.9]} 13... Rxh1 {[%clk
0:01:38.6]} 14. gxf6 {[%clk 0:02:27]} 14... gxf6 {[%clk 0:01:37]} 15. Bxh1
{[%clk 0:02:27.1]} 15... f5 {[%clk 0:01:35.2]} 16. f3 {[%clk 0:02:20.1]} 16...
exf3 {[%clk 0:01:23.2]} 17. Nxf3 {[%clk 0:02:17.7]} 17... O-O-O {[%clk
0:01:21.8]} 18. Ba3 {[%clk 0:02:11.2]} 18... Nxb3+ {[%clk 0:01:18.9]} 19. Kb2
{[%clk 0:02:06.6]} 19... Qf6+ {[%clk 0:01:01.6]} 20. Qe5 {[%clk 0:02:02.8]}
20... Qxe5+ {[%clk 0:00:55.5]} 21. Nxe5 {[%clk 0:02:02.9]} 21... Na5 {[%clk
0:00:53.1]} 22. Be7 {[%clk 0:02:02.3]} 22... Re8 {[%clk 0:00:35.8]} 23. Rxd7
{[%clk 0:01:48.4]} 23... Nxc4+ {[%clk 0:00:34.8]} 24. Nxc4 {[%clk 0:01:48.4]}
24... Kxd7 {[%clk 0:00:34.4]} 25. Bf6 {[%clk 0:01:46.9]} 25... c6 {[%clk
0:00:32.8]} 26. Ne5+ {[%clk 0:01:45.6]} 26... Kc7 {[%clk 0:00:31.7]} 27. Nxf7
{[%clk 0:01:45.7]} 27... Rf8 {[%clk 0:00:28.3]} 28. Be5+ {[%clk 0:01:45.9]}
28... Kd7 {[%clk 0:00:26.6]} 29. Nd6 {[%clk 0:01:44]} 29... b5 {[%clk
0:00:20.7]} 30. Kc3 {[%clk 0:01:38.2]} 30... Rg8 {[%clk 0:00:21.2]} 31. Nb7
{[%clk 0:01:28.1]} 31... Rg1 {[%clk 0:00:21.1]} 32. Nc5+ {[%clk 0:01:27.3]}
32... Ke7 {[%clk 0:00:20.2]} 33. Bxc6 {[%clk 0:01:27.2]} 33... Re1 {[%clk
0:00:20.7]} 34. Kd4 {[%clk 0:01:22.3]} 34... Rd1+ {[%clk 0:00:19.9]} 35. Nd3
{[%clk 0:01:22.2]} 35... Ra1 {[%clk 0:00:19.3]} 36. Bxb5 {[%clk 0:01:17.9]}
36... Rxa2 {[%clk 0:00:19.5]} 37. c4 {[%clk 0:01:16.8]} 37... a6 {[%clk
0:00:19.1]} 38. Nb4 {[%clk 0:01:09.4]} 38... Rd2+ {[%clk 0:00:16.9]} 39. Ke3
{[%clk 0:01:07.5]} 39... Rd1 {[%clk 0:00:16.6]} 40. Nxa6 {[%clk 0:01:07.2]}
40... Re1+ {[%clk 0:00:16.1]} 41. Kd4 {[%clk 0:01:06.9]} 41... Re4+ {[%clk
0:00:16.3]} 42. Kd3 {[%clk 0:01:04.5]} 42... Rxe5 {[%clk 0:00:17.2]} 43. Nb4
{[%clk 0:01:00.2]} 43... Rc5 {[%clk 0:00:15.2]} 44. Kd4 {[%clk 0:00:59.1]} 44...
Rc8 {[%clk 0:00:14.9]} 45. c5 {[%clk 0:00:59.4]} 45... Kf6 {[%clk 0:00:14.6]}
46. Bd7 {[%clk 0:00:56.5]} 46... e5+ {[%clk 0:00:13.9]} 47. Kd5 {[%clk 0:00:56]}
47... Rf8 {[%clk 0:00:13.2]} 48. c6 {[%clk 0:00:51.6]} 48... e4 {[%clk 0:00:12]}
49. c7 {[%clk 0:00:48.6]} 49... e3 {[%clk 0:00:12]} 50. Nd3 {[%clk 0:00:44.7]}
50... e2 {[%clk 0:00:09.3]} 51. c8=Q {[%clk 0:00:42.1]} 51... Rxc8 {[%clk
0:00:09.8]} 52. Bxc8 {[%clk 0:00:42.3]} 52... f4 {[%clk 0:00:10.3]} 53. Ke4
{[%clk 0:00:41.9]} 53... f3 {[%clk 0:00:10.3]} 54. Kxf3 {[%clk 0:00:41.8]} 54...
Ke7 {[%clk 0:00:10]} 55. Kxe2 {[%clk 0:00:41.5]} 55... Kd6 {[%clk 0:00:10.5]}
56. Bf5 {[%clk 0:00:41.4]} 56... Kd5 {[%clk 0:00:10.5]} 57. Ke3 {[%clk
0:00:41.9]} 57... Kd6 {[%clk 0:00:10.3]} 58. Ke4 {[%clk 0:00:42.2]} 58... Kc6
{[%clk 0:00:10.4]} 59. Kd4 {[%clk 0:00:42.2]} 59... Kd6 {[%clk 0:00:10.5]} 60.
Bg4 {[%clk 0:00:42.6]} 60... Kc6 {[%clk 0:00:10.4]} 61. Ne5+ {[%clk 0:00:42.7]}
61... Kd6 {[%clk 0:00:10.4]} 62. Bh3 {[%clk 0:00:42.8]} 62... Ke7 {[%clk
0:00:09.2]} 63. Kd5 {[%clk 0:00:43.3]} 63... Kf6 {[%clk 0:00:08.6]} 64. Nd3
{[%clk 0:00:44.2]} 64... Ke7 {[%clk 0:00:08.2]} 65. Ke5 {[%clk 0:00:44.4]} 65...
Kf7 {[%clk 0:00:08.2]} 66. Nf4 {[%clk 0:00:44.2]} 66... Ke7 {[%clk 0:00:06.9]}
67. Be6 {[%clk 0:00:44.4]} 67... Kf8 {[%clk 0:00:06.8]} 68. Kf6 {[%clk
0:00:43.8]} 68... Ke8 {[%clk 0:00:06.6]} 69. Nd5 {[%clk 0:00:44.1]} 69... Kf8
{[%clk 0:00:06.2]} 70. Nf4 {[%clk 0:00:40.8]} 70... Ke8 {[%clk 0:00:06.4]} 71.
Ng6 {[%clk 0:00:39.7]} 71... Kd8 {[%clk 0:00:06.3]} 72. Ke5 {[%clk 0:00:40.4]}
72... Ke8 {[%clk 0:00:05.5]} 73. Kd5 {[%clk 0:00:41.2]} 73... Kd8 {[%clk
0:00:05.4]} 74. Kd6 {[%clk 0:00:41.1]} 74... Ke8 {[%clk 0:00:05.4]} 75. Bd5
{[%clk 0:00:41.5]} 75... Kd8 {[%clk 0:00:05.3]} 76. Bf7 {[%clk 0:00:41.8]} 76...
Kc8 {[%clk 0:00:04.9]} 77. Bd5 {[%clk 0:00:40.1]} 77... Kd8 {[%clk 0:00:04.8]}
78. Bc6 {[%clk 0:00:40.5]} 78... Kc8 {[%clk 0:00:04.8]} 79. Ne5 {[%clk
0:00:38.9]} 79... Kd8 {[%clk 0:00:04.8]} 80. Nf7+ {[%clk 0:00:39.2]} 80... Kc8
{[%clk 0:00:04.7]} 81. Kc5 {[%clk 0:00:37.6]} 81... Kb8 {[%clk 0:00:04.7]} 82.
Kb6 {[%clk 0:00:37.2]} 82... Kc8 {[%clk 0:00:04.7]} 83. Be8 {[%clk 0:00:37.4]}
83... Kb8 {[%clk 0:00:04.5]} 84. Bd7 {[%clk 0:00:37.8]} 84... Ka8 {[%clk
0:00:04.2]} 85. Ne5 {[%clk 0:00:38.2]} 85... Kb8 {[%clk 0:00:04]} 86. Nc4 {[%clk
0:00:38.5]} 86... Ka8 {[%clk 0:00:03.8]} 87. Ne3 {[%clk 0:00:38.9]} 87... Kb8
{[%clk 0:00:03.9]} 88. Nd5 {[%clk 0:00:39.2]} 88... Ka8 {[%clk 0:00:03.8]} 89.
Nc7+ {[%clk 0:00:39.3]} 89... Kb8 {[%clk 0:00:03.6]} 90. Na6+ {[%clk 0:00:38.6]}
1-0

[Event "*** SCC Grand Prix: Titled Tuesday Blitz"]
[Site "Chess.com"]
[Date "2020.06.02"]
[Round "10"]
[White "Violord"]
[Black "Savva09022009"]
[Result "0-1"]
[WhiteElo "2589"]
[BlackElo "2429"]
[TimeControl "180+1"]
[EndTime "12:00:19 PDT"]
[Termination "Savva09022009 won on time"]

1. Nf3 {[%clk 0:02:59.6]} 1... Nf6 {[%clk 0:02:58.5]} 2. g3 {[%clk 0:02:59]}
2... e6 {[%clk 0:02:57.5]} 3. Bg2 {[%clk 0:02:58.4]} 3... d5 {[%clk 0:02:56.9]}
4. O-O {[%clk 0:02:58.1]} 4... Be7 {[%clk 0:02:54.9]} 5. c4 {[%clk 0:02:58]}
5... Bf8 {[%clk 0:02:55.8]} 6. b3 {[%clk 0:02:57]} 6... Be7 {[%clk 0:02:55.6]}
7. Bb2 {[%clk 0:02:56.7]} 7... O-O {[%clk 0:02:56.2]} 8. e3 {[%clk 0:02:56.8]}
8... c5 {[%clk 0:02:55.9]} 9. Nc3 {[%clk 0:02:56.4]} 9... Nc6 {[%clk 0:02:55.1]}
10. d3 {[%clk 0:02:55.7]} 10... b6 {[%clk 0:02:54.2]} 11. Qe2 {[%clk 0:02:55.3]}
11... Bb7 {[%clk 0:02:53.7]} 12. Rad1 {[%clk 0:02:55.9]} 12... Qc7 {[%clk
0:02:52.4]} 13. Nh4 {[%clk 0:02:53.5]} 13... Rad8 {[%clk 0:02:49.8]} 14. f4
{[%clk 0:02:53.1]} 14... a6 {[%clk 0:02:47.5]} 15. Nf3 {[%clk 0:02:51.7]} 15...
d4 {[%clk 0:02:45]} 16. exd4 {[%clk 0:02:51.1]} 16... cxd4 {[%clk 0:02:45.9]}
17. Nb1 {[%clk 0:02:48.6]} 17... Bc5 {[%clk 0:02:41.5]} 18. a3 {[%clk
0:02:46.2]} 18... Ng4 {[%clk 0:02:37.3]} 19. b4 {[%clk 0:02:45.2]} 19... Be7
{[%clk 0:02:30.7]} 20. Bc1 {[%clk 0:02:24.1]} 20... Bf6 {[%clk 0:02:27.3]} 21.
Ng5 {[%clk 0:02:17.5]} 21... Ne3 {[%clk 0:02:23.5]} 22. Ne4 {[%clk 0:02:15.9]}
22... Nxf1 {[%clk 0:02:13.9]} 23. Nxf6+ {[%clk 0:02:15.4]} 23... gxf6 {[%clk
0:02:14.8]} 24. Rxf1 {[%clk 0:02:14.8]} 24... Ne7 {[%clk 0:02:10.8]} 25. Nd2
{[%clk 0:02:12.3]} 25... Bxg2 {[%clk 0:02:07.2]} 26. Qxg2 {[%clk 0:02:12]} 26...
Nf5 {[%clk 0:02:06.7]} 27. Ne4 {[%clk 0:02:05.8]} 27... Qe7 {[%clk 0:02:01.8]}
28. Qh3 {[%clk 0:02:03.4]} 28... Kh8 {[%clk 0:01:58.4]} 29. g4 {[%clk
0:01:56.6]} 29... Rg8 {[%clk 0:01:54.2]} 30. Kh1 {[%clk 0:01:54.5]} 30... Ne3
{[%clk 0:01:51.8]} 31. Rg1 {[%clk 0:01:47.7]} 31... f5 {[%clk 0:01:48]} 32. Bxe3
{[%clk 0:01:41]} 32... fxe4 {[%clk 0:01:42.5]} 33. Bf2 {[%clk 0:01:33.7]} 33...
e3 {[%clk 0:01:39.7]} 34. Bh4 {[%clk 0:01:33.3]} 34... Qb7+ {[%clk 0:01:34.6]}
35. Qg2 {[%clk 0:01:18.8]} 35... Qxg2+ {[%clk 0:01:33.1]} 36. Rxg2 {[%clk
0:01:18.3]} 36... Rc8 {[%clk 0:01:31.6]} 37. Bf6+ {[%clk 0:01:16.7]} 37... Rg7
{[%clk 0:01:31.7]} 38. Rc2 {[%clk 0:01:12.2]} 38... Kg8 {[%clk 0:01:28]} 39. h3
{[%clk 0:00:58.5]} 39... Rg6 {[%clk 0:01:18.4]} 40. g5 {[%clk 0:00:50.2]} 40...
h6 {[%clk 0:01:15.4]} 41. Kg2 {[%clk 0:00:43.5]} 41... Kh7 {[%clk 0:01:10.7]}
42. Kf3 {[%clk 0:00:40.6]} 42... Rxf6 {[%clk 0:01:08.8]} 43. gxf6 {[%clk
0:00:40.1]} 43... Kg6 {[%clk 0:01:09.7]} 44. Ke4 {[%clk 0:00:38.1]} 44... Rd8
{[%clk 0:01:07.1]} 45. c5 {[%clk 0:00:37.3]} 45... bxc5 {[%clk 0:01:05.1]} 46.
bxc5 {[%clk 0:00:37]} 46... Kxf6 {[%clk 0:01:06]} 47. c6 {[%clk 0:00:37.5]}
47... Rc8 {[%clk 0:00:54.9]} 48. Kxd4 {[%clk 0:00:36.4]} 48... e2 {[%clk
0:00:54.5]} 49. Rxe2 {[%clk 0:00:33.5]} 49... Rxc6 {[%clk 0:00:54.9]} 50. Re5
{[%clk 0:00:32.9]} 50... Rd6+ {[%clk 0:00:47.3]} 51. Ke4 {[%clk 0:00:31.7]}
51... Rb6 {[%clk 0:00:41]} 52. Ra5 {[%clk 0:00:30.9]} 52... Ke7 {[%clk
0:00:39.7]} 53. h4 {[%clk 0:00:30.1]} 53... f5+ {[%clk 0:00:32.7]} 54. Ke5
{[%clk 0:00:25.9]} 54... h5 {[%clk 0:00:33.6]} 55. d4 {[%clk 0:00:22.8]} 55...
Rb1 {[%clk 0:00:28.1]} 56. d5 {[%clk 0:00:19.9]} 56... Re1+ {[%clk 0:00:27.3]}
57. Kd4 {[%clk 0:00:19.9]} 57... Re4+ {[%clk 0:00:26.3]} 58. Kc5 {[%clk
0:00:20]} 58... Rxf4 {[%clk 0:00:25.6]} 59. d6+ {[%clk 0:00:17.5]} 59... Kd7
{[%clk 0:00:21.1]} 60. Rxa6 {[%clk 0:00:16.2]} 60... Rf1 {[%clk 0:00:19.9]} 61.
Ra7+ {[%clk 0:00:16.8]} 61... Kd8 {[%clk 0:00:19.2]} 62. d7 {[%clk 0:00:15.4]}
62... Ke7 {[%clk 0:00:17]} 63. Rb7 {[%clk 0:00:13.2]} 63... Rc1+ {[%clk
0:00:15.9]} 64. Kd4 {[%clk 0:00:10.4]} 64... Rd1+ {[%clk 0:00:15.5]} 65. Ke3
{[%clk 0:00:10.5]} 65... Rxd7 {[%clk 0:00:16.1]} 66. Rb6 {[%clk 0:00:11.1]}
66... Ra7 {[%clk 0:00:14.6]} 67. Rb3 {[%clk 0:00:09]} 67... Ra4 {[%clk
0:00:14.8]} 68. Kf3 {[%clk 0:00:08.7]} 68... Kf6 {[%clk 0:00:13.3]} 69. Kg3
{[%clk 0:00:07.3]} 69... Ke5 {[%clk 0:00:12.2]} 70. Kf3 {[%clk 0:00:07.9]} 70...
Rxh4 {[%clk 0:00:11]} 71. Re3+ {[%clk 0:00:08.5]} 71... Re4 {[%clk 0:00:09.3]}
72. a4 {[%clk 0:00:06.9]} 72... Rxe3+ {[%clk 0:00:08.6]} 73. Kxe3 {[%clk
0:00:06.9]} 73... Kd5 {[%clk 0:00:09.5]} 74. a5 {[%clk 0:00:06.6]} 74... e5
{[%clk 0:00:09.5]} 75. a6 {[%clk 0:00:05.8]} 75... Kc6 {[%clk 0:00:09.9]} 76. a7
{[%clk 0:00:05.8]} 76... Kb7 {[%clk 0:00:10.1]} 0-1